Cogmind - Beta 16 --- EXPLORER MODE // 2025.11.12 @ 12:56:48 Player: K.K.Y. Result: Destroyed by J2-JND(R) with Subdweller Beam Cannon Performance ------------- Evolutions (0) 0 Regions Visited (2) 400 Robots Destroyed (29) 145 Value Destroyed (512) 512 Prototype IDs (0) 0 Alien Tech Used (0) 0 Bonus (0) 0 TOTAL SCORE: 1057 Bonus ------- None Cogmind --------- Core Integrity 0/250 Matter 282/300 Energy 100/100 System Corruption 0% Temperature Cool (9) Movement Core (450) Ox8 Location -10/Subcaves Parts ------- > --- POWER (1) -------- (None) > --- PROPULSION (3) --- (None) > --- UTILITY (2) ------ Large Storage Unit Sensor Array > --- WEAPON (2) ------- Assault Rifle Assault Rifle > --- INVENTORY (15) --- Structural Scanner Signal Interpreter Signal Interpreter Terrain Scanner Terrain Scan Processor Seismic Detector Tractor Beam Subdweller Laser Subdweller Beam Cannon Assault Rifle Light Assault Rifle Subdweller Machine Gun Heavy Battle Rifle Grenade Launcher Peak State ------------ > --- POWER ------------ Light Nuclear Core > --- PROPULSION ------- Aluminum Leg Aluminum Leg > --- UTILITY ---------- Large Storage Unit Sensor Array > --- WEAPON ----------- Assault Rifle Assault Rifle > --- INVENTORY -------- Structural Scanner Signal Interpreter Signal Interpreter Terrain Scanner Terrain Scan Processor Seismic Detector Tractor Beam Subdweller Laser Subdweller Beam Cannon Assault Rifle Light Assault Rifle Subdweller Machine Gun Heavy Battle Rifle Grenade Launcher [Rating: 11] Favorites ----------- Power Light Ion Engine Engine Light Ion Engine Power Core Light Nuclear Core Propulsion Aluminum Leg Leg Aluminum Leg Utility Large Storage Unit Device Sensor Array Storage Large Storage Unit Processor Signal Interpreter Weapon Assault Rifle Ballistic Gun Assault Rifle Launcher Grenade Launcher Build | -11 -10 -10 ------- Run | Yrd Mat Sub Slots Evolved 1 | . 1 . Power . | . . . Propulsion 1 | . 1 . Utility . | . . . Weapon . | . . . Parts Attached 15 | 6 6 3 Power 2 | 1 . 1 Engine 1 | 1 . . Core 1 | . . 1 Reactor . | . . . Propulsion 4 | 2 2 . Treads . | . . . Leg 4 | 2 2 . Wheel . | . . . Hover . | . . . Flight . | . . . Utility 5 | 2 2 1 Device 1 | . . 1 Storage 2 | 1 1 . Processor 2 | 1 1 . Hackware . | . . . Protection . | . . . Artifact . | . . . Weapon 4 | 1 2 1 Energy Gun . | . . . Energy Cannon . | . . . Ballistic Gun 3 | 1 1 1 Ballistic Cannon . | . . . Launcher 1 | . 1 . Special Weapon . | . . . Impact Weapon . | . . . Slashing Weapon . | . . . Piercing Weapon . | . . . Special Melee Weapon . | . . . Unidentified Prototypes . | . . . Parts Lost 8 | . 5 3 Power 2 | . 1 1 Propulsion 4 | . 2 2 Utility 1 | . 1 . Weapon 1 | . 1 . Highest Loss Streak 3 | . 3 3 To Critical Strikes 1 | . 1 . Average Backups 10 | 1 10 13 Power 1 | . 1 1 Propulsion . | . . . Utility 5 | . 5 7 Weapon 1 | . 1 3 Tool/Special . | . . . Unused Backups 13 | . . 13 Power 1 | . . 1 Propulsion . | . . . Utility 7 | . . 7 Weapon 5 | . . 5 Tool/Special . | . . . Average Slot Usage (%) 58 | . 59 56 Engine 1 | . 1 . Leg 24 | . 24 23 Storage 12 | . 12 12 Processor 7 | . 8 . Ballistic Gun 9 | . 8 16 Launcher 2 | . 3 . Peak Build Rating 11 | 6 7 11 Average Rating 5 | 3 5 6 On Entrance 3 | . 6 4 Avg Prop Armor Cover (%) . | . . . Naked Turns . | . . . Heaviest Build 30 | 15 23 30 Greatest Support 30 | 20 30 20 Greatest Overweight (x) 7 | . 7 2 Average Overweight (x) . | . . 1 Largest Inventory Capacity 15 | 10 15 15 Average Capacity 13 | 8 13 15 Most Carried 15 | 5 15 15 Average Carried 10 | 1 10 13 Final Capacity 15 | 10 15 15 Final Carried 14 | . 14 14 Class Distribution -------------------- 100% | Hacker-Mutant Dominant Class ---------------- Hacker-Mutant | -10/Materials Hacker-Mutant | -10/Subcaves Resources | -11 -10 -10 ----------- Run | Yrd Mat Sub Matter Collected 775 | 205 458 112 Remotely . | . . . Salvage Created 665 | . 525 140 Parts 59 | . 49 10 Haulers Intercepted 2 | . 2 . Recyclers Shooed . | . . . Parts Field Recycled . | . . . Retrieved Matter . | . . . Parts Self-Destructed . | . . . Prevented . | . . . Parts Restored . | . . . Kills | -11 -10 -10 ------- Run | Yrd Mat Sub Combat Hostiles Destroyed 18 | . 13 5 Guns 16 | . 11 5 AOE 2 | . 2 . Classes Destroyed 8 | . 7 1 Builder 4 | . 4 . Tunneler 1 | . 1 . Hauler 2 | . 2 . Turret 2 | . . 2 Watcher 2 | . 2 . Swarmer 11 | . 7 4 Grunt 4 | . 4 . Subdweller 3 | . 2 1 Best Kill Streak 6 | . 3 6 Combat Bots Only 4 | . 3 4 Max Kills in Single Turn 2 | . 2 1 Gunslinging . | . . . Exploded 1 | . 1 . Melee . | . . . Uniques/NPCs Destroyed . | . . . Combat | -11 -10 -10 -------- Run | Yrd Mat Sub Hostile Shots Fired 185 | . 95 90 Missed 57 | . 25 32 Hits 128 | . 70 58 Projectile 128 | . 70 58 Critical Strikes 1 | . 1 . Damage Taken 941 | . 604 337 Core 252 | . 126 126 Absorbed by Shields . | . . . Ignored by Resistances 623 | . 391 232 Core Remaining (%) 100 | 100 . . Volleys Fired 105 | . 83 22 Largest 2 | . 1 2 Hottest 40 | . 30 40 Shots Fired 117 | . 83 34 Gun 105 | . 71 34 Cannon . | . . . Launcher 12 | . 12 . Special . | . . . Kinetic 105 | . 71 34 Thermal . | . . . Explosive 12 | . 12 . Electromagnetic . | . . . Robot Hit Streak 51 | . 36 51 Robot Miss Streak 2 | . 2 . Penetration Max . | . . . Secondary Targets . | . . . Shots Hit Robots 109 | . 75 34 Core Hits 40 | . 29 11 Critical Kills 1 | . 1 . Critical Parts Destroyed . | . . . Critical Strikes 1 | . 1 . Destroy 1 | . 1 . Melee Attacks . | . . . Impact . | . . . Slashing . | . . . Piercing . | . . . Sneak Attacks . | . . . Combat Hostiles . | . . . Follow-up Attacks . | . . . Damage Inflicted 1748 | . 1314 434 Guns 1236 | . 802 434 Cannons . | . . . Explosions 512 | . 512 . Melee . | . . . Ramming . | . . . Kinetic 1236 | . 802 434 Thermal . | . . . Explosive 512 | . 512 . Electromagnetic . | . . . Impact . | . . . Slashing . | . . . Piercing . | . . . Highest Corruption . | . . . Average Corruption . | . . . Corruption Purged . | . . . Corruption Blocked . | . . . Overload Shots . | . . . Overflow Damage 14 | . 14 . Projectiles . | . . . Explosions 14 | . 14 . Melee . | . . . Knockbacks . | . . . Impact . | . . . Kinetic . | . . . Secondary . | . . . Self-Inflicted Damage 117 | . 117 . Shots 6 | . 6 . Rammed . | . . . Targets Rammed . | . . . Kicked . | . . . Crushed . | . . . Highest Temperature 3 | . 3 . Average Temperature 2 | . 2 . Received Heat Transfer 582 | . 303 279 Siege Activations . | . . . Martial Activations . | . . . Shielding Activations . | . . . Robots Disrupted . | . . . Combat Hostiles . | . . . Robots Corrupted . | . . . Combat Hostiles . | . . . Parts Fried . | . . . Impact Corruptions . | . . . Robots Melted . | . . . Combat Hostiles . | . . . Parts Melted . | . . . Heat Transferred . | . . . Parts Sabotaged . | . . . Parts Stolen . | . . . Parts Stripped . | . . . Power Chain Reactions . | . . . Alert | -11 -10 -10 ------- Run | Yrd Mat Sub Maximum Alert Level . | . . . Low Security (%) 100 | 100 100 . Level 1 . | . . . Level 2 . | . . . Level 3 . | . . . Level 4 . | . . . Level 5 . | . . . High Security . | . . . Max Security . | . . . Peak Influence 60 | . 60 . Initial . | . . . Average 5 | . 5 . Influence Increases 548 | . 398 150 Destroy 0b10 Robot/C 340 | . 220 120 Destroy 0b10 Robot/NC 45 | . 45 . Destroy Leader 58 | . 58 . Disable Machine 4 | . 4 . Destroy Structure 56 | . 56 . Lose Combat Pursuer 45 | . 15 30 Influence Decreases 518 | . 398 120 Time Decay 464 | . 374 90 Lost Part 54 | . 24 30 Squads Dispatched . | . . . Investigation . | . . . Extermination . | . . . Reinforcement . | . . . Assault . | . . . Garrison . | . . . Intercept . | . . . Searches Triggered . | . . . Construction Impeded . | . . . Haulers Reinforced . | . . . Active Scanning Responses . | . . . Cargo Convoy Interrupts . | . . . Stealth | -11 -10 -10 --------- Run | Yrd Mat Sub Distress Signals 2 | . 2 . Communications Jammed . | . . . Distress Signals . | . . . Times Spotted 28 | . 19 9 Peak Tracking Total 6 | . 4 6 Tactical Retreats 2 | . 1 1 Traps | -11 -10 -10 ------- Run | Yrd Mat Sub Traps Triggered 4 | . 4 . Indirectly . | . . . Trap Hack Attempts . | . . . Triggered . | . . . Disarmed . | . . . Reprogrammed . | . . . Reused . | . . . Traps Extracted . | . . . Installed . | . . . Triggered . | . . . Machines | -11 -10 -10 ---------- Run | Yrd Mat Sub Machines Disabled 1 | . 1 . Max in Single Turn 1 | . 1 . Machines Repaired . | . . . Machines Dismantled . | . . . Machines Sabotaged . | . . . Overloaded Fab Kills . | . . . Hacking | -11 -10 -10 --------- Run | Yrd Mat Sub Machines Accessed 1 | . 1 . Terminals 1 | . 1 . Fabricators . | . . . Repair Stations . | . . . Recycling Units . | . . . Scanalyzers . | . . . Garrison Access . | . . . Total Hacks 2 | . 2 . Successful . | . . . Failed 2 | . 2 . Catastrophic . | . . . Database Lockouts . | . . . Manual 2 | . 2 . Terminals 2 | . 2 . Fabricators . | . . . Repair Stations . | . . . Recycling Units . | . . . Scanalyzers . | . . . Garrison Access . | . . . Terminal Hacks . | . . . Fabricator Hacks . | . . . Repair Station Hacks . | . . . Recycling Unit Hacks . | . . . Scanalyzer . | . . . Garrison Access Hacks . | . . . Unauthorized Hacks . | . . . Terminals . | . . . Fabricators . | . . . Repair Stations . | . . . Recycling Units . | . . . Scanalyzers . | . . . Garrison Access . | . . . Data Cores Recovered . | . . . Used . | . . . Hacking Detections 1 | . 1 . Full Trace Events 1 | . 1 . Feedback Events . | . . . Feedback Blocked . | . . . Robot Schematics Acquired . | . . . Robots Built . | . . . Authchips . | . . . Time . | . . . Total Robot Build Rating . | . . . Part Schematics Acquired . | . . . Parts Built . | . . . Authchips . | . . . Time . | . . . Total Part Build Rating . | . . . Part Studies Acquired . | . . . Parts Repaired . | . . . Time . | . . . Parts Recycled . | . . . Recycled Matter . | . . . Retrieved Matter . | . . . Retrieved Components . | . . . Parts Scanalyzed . | . . . Part Schematics Acquired . | . . . Parts Damaged . | . . . Bothacking | -11 -10 -10 ------------ Run | Yrd Mat Sub Used RIF Installer . | . . . Robots Hacked . | . . . Non-combat . | . . . Combat . | . . . Robot Hacks Applied . | . . . Relay Couplers Released . | . . . Fabnet Peak Effective % . | . . . Robots Rewired . | . . . Allies Hacked . | . . . Hacks Repelled . | . . . Allies | -11 -10 -10 -------- Run | Yrd Mat Sub Total Allies . | . . . Largest Group . | . . . Highest-Rated Group . | . . . Highest-Rated Ally . | . . . Total Orders . | . . . Ally Attacks . | . . . Total Damage . | . . . Kills . | . . . Allies Corrupted . | . . . Allies Melted . | . . . Intel | -11 -10 -10 ------- Run | Yrd Mat Sub Active Infowar (turns) 55 | . . 55 Sensors 55 | . . 55 Robot Analysis Total . | . . . Derelict Logs Recovered 1 | . . 1 Drone Launches . | . . . Drone Recoveries . | . . . Exploration | -11 -10 -10 ------------- Run | Yrd Mat Sub Turns Passed 2216 | 67 1856 293 Spaces Moved 1143 | 65 961 117 Core 34 | 31 3 . Treads . | . . . Legs 1109 | 34 958 117 Wheels . | . . . Hover . | . . . Flight . | . . . Fastest Speed 50 | 50 120 190 Average Speed 169 | 86 172 191 Slowest Speed 400 | 120 400 260 Overloaded Moves . | . . . Propulsion Burnouts . | . . . Robots Hopped . | . . . Potential Cave-ins . | . . . Cave-ins Triggered . | . . . Exploration Rate (%) 37 | 3 100 8 Regions Visited 2 Branch Regions 1 Pre-discovered Areas 1 | . . 1 Known Exits Taken 2 | 1 1 . Unknown Exits Taken . | . . . Scrap Searched 2 | . . 2 Spaces Dug . | . . . Terrain Destroyed 69 | . 69 . Melee . | . . . Projectile . | . . . AOE 69 | . 69 . Terrain Rammed . | . . . Walls Destroyed . | . . . Machines Disabled . | . . . Actions | -11 -10 -10 --------- Run | Yrd Mat Sub Total 1303 | 75 1075 153 Wait 6 | . 2 4 Move 1141 | 64 960 117 Hop . | . . . Pick Up 30 | 5 20 5 Fast Attach 3 | 1 2 . Attach 15 | 5 6 4 Detach . | . . . Swap 1 | . 1 . Drop 2 | . 1 1 Fire 105 | . 83 22 Melee . | . . . Ram . | . . . Kick . | . . . Crush . | . . . Escape Stasis . | . . . Rewire . | . . . Trap . | . . . Miscellaneous . | . . . Route ------- -11/Scrapyard -10/Materials (discovered 5 exits: *Mat x3 / *Min / *Sub) -10/Subcaves (discovered 1 exit: *Rec) History --------- Turn | Location | Event 4 | -11/Scrapyard | Identified exit to Materials 4 | -11/Scrapyard | Discovered exit to Materials (range 16) 68 | -11/Scrapyard | Entered Materials 68 | -10/Materials | Evolved 1 slot: Propulsion x1 311 | -10/Materials | Build established: Hacker-Mutant 372 | -10/Materials | Identified exit to Materials 372 | -10/Materials | Discovered exit to Materials (range 13) 476 | -10/Materials | Discovered exit to Materials (range 13) 568 | -10/Materials | Derelicts attacked the area 586 | -10/Materials | Discovered exit to Materials (range 5) 890 | -10/Materials | Identified exit to Subcaves 890 | -10/Materials | Discovered exit to Subcaves (range 10) 923 | -10/Materials | Lost 3 parts (2n1w) 953 | -10/Materials | Identified exit to Mines 953 | -10/Materials | Discovered exit to Mines (range 10) 1454 | -10/Materials | Core integrity fell below 50% 1924 | -10/Materials | Entered Subcaves 2039 | -10/Subcaves | Learned location of Zion (-6) 2104 | -10/Subcaves | Identified exit to Recycling 2104 | -10/Subcaves | Discovered exit to Recycling (range 11) 2119 | -10/Subcaves | Core integrity fell below 20% 2217 | -10/Subcaves | Destroyed by J2-JND(R) with Subdweller Beam Cannon Last Messages --------------- 02131_ Autobeam Turret destroyed. 02134_ Searching scrap... 02134_ Found Sub. Machine Gun. 02134_ Found Hvy. Battle Rifle. 02134_ Found 51 Matter. 02135_ Acquired 48 matter. 02136_ Subatomizers dissect the Sub. Laser. 02138_ Acquired Hvy. Battle Rifle. 02143_ Acquired Lgt. Assault Rifle. 02157_ Acquired Sub. Machine Gun. 02163_ Acquired 10 matter. 02164_ Dropped Ion Engine. 02165_ Subatomizers dissect the Sub. Laser. 02170_ Acquired Sub. Laser. 02175_ Acquired Sub. Beam Cannon. 02177_ Subatomizers dissect the Lgt. Assault Rifle. 02205_ Lgt. Nuclear Core destroyed. 02207_ Aluminum Leg destroyed. 02209_ JX-RYY(R) destroyed. Map ----- +----------------------------------------------------+ | ???# #?????????????????????????????????????? | | #### #?????????????????????????????????????? | | ####???????????????????????????????????? | | ## ##??????????????????????????????????? | | # ## #??????????????????????????????????? | | ## ### ##??????????????????????????????????? | | ## ##?## #???????????????????????????????????? | | #???## #???????????????????????????????????? | | #???## #???????????????????????????????????? | | ###??## ##??????????????????????????????????? | | ##??## ###????????????????????????????????? | | #### #????????????????????????????????? | | ### ##????????????????????????????????? | | ## ##?????????????????????????????????? | | #??????????????????????????????????? | | #??????????????????????????????????? | | "" #??????????????????????????????????? | | ### ###??????????????????????????????????? | | ??## ### ####??????????????????????????????????? | | ???####?# ## ###????????????????????????????????? | | ??###???## =#?####??????????##???????????????? | | ??#""" ??### ##[### ##??????? #??? ?????????? | | ??#" ???###* =# ##????? # ?????????? | | ??#" % #### %##%## ##### ????????? | | ??#"" *[ ### # # ## ; ; R ???????????? | | ?#> % *% % @=%] #??????????????????? | | ?##"" ##### ### # ## !# ##??????????????????? | | ??#" #????###?###### ##?????????????????????? | | ??#" ??????????????# #??????????????????????? | | ??#""" ??????????????? #??????????????????????? | | ??######??????????????? ??????????????????????? | | ?????????????????????? ?????????????????????? | | ?????????????????????? ?????????????????????? | | ?????????????????????## ????????????????????? | | ??????????????????????# #???????????????????? | | ??????????????????????# #???????????????????? | | ?????????????????????? ?#???????????????????? | | ?????????????????????? ????????????????????? | | ??????????????????????# ????????????????????? | | ??????????????????????# ??????????????????????? | | ??????????????????????? ??????????????????????? | | ?????????????????????????????????????????????????? | | ?????????????????????????????????????????????????? | | ?????????????????????????????????????????????????? | | ?????????????????????????????????????????????????? | | ?????????????????????????????????????????????????? | | ?????????????????????????????????????????????????? | | ?????????????????????????????????????????????????? | | ?????????????????????????????????????????????????? | | ?????????????????????????????????????????????????? | +----------------------------------------------------+ Best States ------------- Heat Dissipation 25 Energy Generation 14 Energy Capacity 160 Matter Stores 300 Matter Capacity 300 Sight Range 16 Robot Scan Range 14 Terrain Scan Density 10 Resistance: KI 35 Resistance: TH 35 Resistance: EX 35 Resistance: EM 35 Resistance: I 35 Resistance: S 35 Resistance: P 35 Evasion (%) 55 Targeting Accuracy 5 Offensive Hacking 20 Item Schematics ----------------- None Robot Schematics ------------------ None Fabricated ------------ Nothing Repaired ---------- Nothing Studied --------- None Alien Tech Used ----------------- None Achievements -------------- None Challenges ------------ None Game ------ Seed TrapSwarmRipteeth Manual? 0 Play Time 00:10:36 Cumulative 78.5 hours Start 2025.11.12 @ 12:47:41 End 2025.11.12 @ 12:56:48 Sessions 1 Manual Loads 0 Difficulty Explorer Special Mode None Game No. 68 Rogue 0 Adventurer 0 Explorer 68 Win Type - Total 0 Types 0/0/0/0/0/0/0/0/0/0 Lore% 51 Gallery% 54 Achievement% 42 Wizard Run 0 Options --------- Layout 1 ASCII 0 Keyboard 0 Movement Mouse Keybinds 0 Fullscreen 1 Font 24/Smallcaps Map View 50x35 Zoom Use 0% Tactical HUD 1 Map Filters NONE Filters NONE Steam 1 RUN: 427fde86-dca1-4ed3-bdde-f514238b2fc0